[Event "*** Titled Tuesday 3|2 Blitz"]
[Site "Chess.com"]
[Date "2016.01.05"]
[Round "3"]
[White "GrigorGrigorov"]
[Black "mateueasily"]
[Result "1-0"]
[WhiteElo "2501"]
[BlackElo "2328"]
[TimeControl "180+2"]
[EndTime "17:39:11 PST"]
[Termination "GrigorGrigorov won by resignation"]

1. e4 {[%clk 0:03:01.9]} 1... c5 {[%clk 0:03:00.5]} 2. c3 {[%clk 0:03:01.7]}
2... Nf6 {[%clk 0:03:00.2]} 3. e5 {[%clk 0:03:02.1]} 3... Nd5 {[%clk 0:03:00.7]}
4. d4 {[%clk 0:03:02.9]} 4... cxd4 {[%clk 0:03:01.3]} 5. Nf3 {[%clk 0:03:03.4]}
5... d6 {[%clk 0:03:01.8]} 6. cxd4 {[%clk 0:03:03.8]} 6... Nc6 {[%clk
0:03:02.5]} 7. Bc4 {[%clk 0:03:04.1]} 7... Nb6 {[%clk 0:03:03.3]} 8. Bb5 {[%clk
0:03:03.8]} 8... dxe5 {[%clk 0:03:04.3]} 9. Nxe5 {[%clk 0:03:04.5]} 9... Bd7
{[%clk 0:03:05.5]} 10. Nxd7 {[%clk 0:03:02.7]} 10... Qxd7 {[%clk 0:03:04.8]} 11.
Nc3 {[%clk 0:03:03.5]} 11... e6 {[%clk 0:03:05.1]} 12. O-O {[%clk 0:03:04.2]}
12... Be7 {[%clk 0:02:58.1]} 13. Qg4 {[%clk 0:03:04.8]} 13... g5 {[%clk
0:02:42]} 14. Bxc6 {[%clk 0:02:42.5]} 14... bxc6 {[%clk 0:02:38.5]} 15. Rd1
{[%clk 0:02:09.2]} 15... Nd5 {[%clk 0:02:18.1]} 16. Ne4 {[%clk 0:02:05.1]} 16...
h5 {[%clk 0:02:00.4]} 17. Qe2 {[%clk 0:02:03.7]} 17... g4 {[%clk 0:01:52.8]} 18.
Bg5 {[%clk 0:01:57.5]} 18... f6 {[%clk 0:01:29.2]} 19. Bh4 {[%clk 0:01:53.8]}
19... Kf7 {[%clk 0:01:15.8]} 20. Rac1 {[%clk 0:01:51.4]} 20... Nf4 {[%clk
0:01:12.1]} 21. Qd2 {[%clk 0:01:24.4]} 21... Ng6 {[%clk 0:01:11]} 22. Bg3 {[%clk
0:01:16.6]} 22... h4 {[%clk 0:01:07.4]} 23. Bf4 {[%clk 0:01:17.4]} 23... f5
{[%clk 0:01:04.1]} 24. Nc5 {[%clk 0:01:09.7]} 24... Qd5 {[%clk 0:00:49.5]} 25.
Re1 {[%clk 0:00:58.6]} 25... h3 {[%clk 0:00:48.8]} 26. f3 {[%clk 0:01:00.1]}
26... gxf3 {[%clk 0:00:23.3]} 27. Nxe6 {[%clk 0:01:00.4]} 27... hxg2 {[%clk
0:00:23.1]} 28. Bg3 {[%clk 0:00:46.8]} 28... Rag8 {[%clk 0:00:20.3]} 29. Ng5+
{[%clk 0:00:42.6]} 29... Bxg5 {[%clk 0:00:16.5]} 30. Qxg5 {[%clk 0:00:43.4]}
30... f2+ {[%clk 0:00:14.6]} 31. Bxf2 {[%clk 0:00:40.6]} 31... Re8 {[%clk
0:00:15.5]} 32. Qxg2 {[%clk 0:00:34.4]} 32... Rxe1+ {[%clk 0:00:14.1]} 33. Rxe1
{[%clk 0:00:33.7]} 33... Qxa2 {[%clk 0:00:15.1]} 34. Qxc6 {[%clk 0:00:32.9]}
34... Rg8 {[%clk 0:00:16.1]} 35. Qd7+ {[%clk 0:00:25.5]} 35... Ne7+ {[%clk
0:00:17]} 36. Bg3 {[%clk 0:00:27]} 36... Re8 {[%clk 0:00:14.6]} 37. d5 {[%clk
0:00:26.7]} 37... Qa5 {[%clk 0:00:09]} 38. Qe6+ {[%clk 0:00:21.3]} 38... Kf8
{[%clk 0:00:07.1]} 39. Bd6 {[%clk 0:00:18.3]} 39... Qb6+ {[%clk 0:00:07.7]} 40.
Kg2 {[%clk 0:00:19.2]} 40... Qb7 {[%clk 0:00:09.1]} 41. Qf6+ {[%clk 0:00:19]}
41... Kg8 {[%clk 0:00:10.6]} 42. Bxe7 {[%clk 0:00:19.2]} 42... Qxd5+ {[%clk
0:00:11.6]} 43. Kf2 {[%clk 0:00:19.5]} 43... Qd2+ {[%clk 0:00:12.6]} 44. Kf3
{[%clk 0:00:16.2]} 44... Qd3+ {[%clk 0:00:10.1]} 45. Kf4 {[%clk 0:00:12.8]}
45... Qd2+ {[%clk 0:00:10]} 46. Kxf5 {[%clk 0:00:11.6]} 46... Qf2+ {[%clk
0:00:11.2]} 47. Kg6 {[%clk 0:00:11]} 47... Qg2+ {[%clk 0:00:12.3]} 48. Qg5
{[%clk 0:00:10.9]} 48... Qc6+ {[%clk 0:00:13.3]} 49. Kh5+ {[%clk 0:00:10.4]}
49... Kh7 {[%clk 0:00:14.3]} 50. Qf5+ {[%clk 0:00:11.2]} 50... Kh8 {[%clk
0:00:15.5]} 51. Bf6+ {[%clk 0:00:11.7]} 51... Kg8 {[%clk 0:00:16.3]} 52. Rxe8+
{[%clk 0:00:10.4]} 52... Qxe8+ {[%clk 0:00:16.5]} 53. Qg6+ {[%clk 0:00:12]} 1-0

[Event "*** Titled Tuesday 3|2 Blitz"]
[Site "Chess.com"]
[Date "2016.01.05"]
[Round "3"]
[White "jefferyx"]
[Black "LADIESGET2KNOWME"]
[Result "1/2-1/2"]
[WhiteElo "2535"]
[BlackElo "2288"]
[TimeControl "180+2"]
[EndTime "17:39:27 PST"]
[Termination "Game drawn by agreement"]

1. b4 {[%clk 0:03:01.9]} 1... Nf6 {[%clk 0:03:00.5]} 2. Bb2 {[%clk 0:02:59.7]}
2... g6 {[%clk 0:03:02.4]} 3. Bxf6 {[%clk 0:03:00.8]} 3... exf6 {[%clk
0:03:03.3]} 4. a3 {[%clk 0:03:02.6]} 4... f5 {[%clk 0:03:04.2]} 5. d4 {[%clk
0:03:04.3]} 5... d5 {[%clk 0:03:04.3]} 6. e3 {[%clk 0:03:05.9]} 6... c6 {[%clk
0:03:05.2]} 7. g3 {[%clk 0:03:07.5]} 7... Nd7 {[%clk 0:03:06.5]} 8. Bg2 {[%clk
0:03:09.2]} 8... Nf6 {[%clk 0:03:08.1]} 9. Ne2 {[%clk 0:03:10.5]} 9... Bd6
{[%clk 0:03:09.2]} 10. Nd2 {[%clk 0:03:12.2]} 10... O-O {[%clk 0:03:10.3]} 11.
c4 {[%clk 0:03:13.9]} 11... dxc4 {[%clk 0:03:10.4]} 12. Nxc4 {[%clk 0:03:15.2]}
12... Ne4 {[%clk 0:03:11.7]} 13. O-O {[%clk 0:03:16.4]} 13... Qe7 {[%clk
0:03:12.7]} 14. Qc2 {[%clk 0:03:17.2]} 14... Be6 {[%clk 0:03:12]} 15. Nxd6
{[%clk 0:03:18.2]} 15... Nxd6 {[%clk 0:03:12.6]} 16. Nf4 {[%clk 0:03:19.8]}
16... Bc4 {[%clk 0:03:08.6]} 17. Rfc1 {[%clk 0:03:20.3]} 17... a5 {[%clk
0:03:08.1]} 18. Qc3 {[%clk 0:03:18.7]} 18... axb4 {[%clk 0:03:04.3]} 19. Qxb4
{[%clk 0:03:20.6]} 19... Ba6 {[%clk 0:03:02.6]} 20. d5 {[%clk 0:03:15.2]} 20...
cxd5 {[%clk 0:02:49.7]} 21. Nxd5 {[%clk 0:03:17.1]} 21... Qe5 {[%clk 0:02:51.3]}
22. f4 {[%clk 0:02:07.7]} 22... Qe6 {[%clk 0:02:50.3]} 23. Qd4 {[%clk
0:02:09.2]} 23... Ne8 {[%clk 0:02:30]} 24. Rab1 {[%clk 0:01:56.2]} 24... Rd8
{[%clk 0:02:24]} 25. Rb6 {[%clk 0:01:51.1]} 25... Qd7 {[%clk 0:02:25.2]} 26. Qe5
{[%clk 0:01:24.3]} 26... f6 {[%clk 0:02:15.2]} 27. Qb2 {[%clk 0:00:58.8]} 27...
Kg7 {[%clk 0:01:58.1]} 28. h3 {[%clk 0:00:47.7]} 28... Rf7 {[%clk 0:01:57.4]}
29. Kh2 {[%clk 0:00:47.7]} 29... Rc8 {[%clk 0:01:45.1]} 30. Rd1 {[%clk
0:00:33.4]} 30... Rc6 {[%clk 0:00:45.7]} 31. Rxc6 {[%clk 0:00:14.4]} 31... bxc6
{[%clk 0:00:41.3]} 32. Nc3 {[%clk 0:00:07]} 32... Qe6 {[%clk 0:00:37.9]} 33. e4
{[%clk 0:00:07]} 33... Nd6 {[%clk 0:00:31.7]} 34. Re1 {[%clk 0:00:05.1]} 34...
fxe4 {[%clk 0:00:30.9]} 35. Nxe4 {[%clk 0:00:07]} 35... Nxe4 {[%clk 0:00:30.7]}
36. Rxe4 {[%clk 0:00:08.9]} 36... Qd6 {[%clk 0:00:29.8]} 37. Rd4 {[%clk
0:00:07.7]} 37... Qc5 {[%clk 0:00:24.2]} 38. Qb4 {[%clk 0:00:03.6]} 38... Qxb4
{[%clk 0:00:18.3]} 39. axb4 {[%clk 0:00:05.5]} 39... Bb5 {[%clk 0:00:07.1]} 40.
Rd6 {[%clk 0:00:04.8]} 40... Rb7 {[%clk 0:00:03.7]} 41. g4 {[%clk 0:00:02.7]}
41... Kf7 {[%clk 0:00:04.9]} 42. g5 {[%clk 0:00:03.8]} 42... fxg5 {[%clk
0:00:06.8]} 43. fxg5 {[%clk 0:00:05.7]} 43... Ke7 {[%clk 0:00:08.7]} 44. Rd4
{[%clk 0:00:06.7]} 44... Ra7 {[%clk 0:00:09.5]} 45. Re4+ {[%clk 0:00:07.7]}
45... Kd6 {[%clk 0:00:10.3]} 46. Rh4 {[%clk 0:00:08.4]} 46... Ra2 {[%clk
0:00:08.9]} 47. Kg3 {[%clk 0:00:08.8]} 47... Ra3+ {[%clk 0:00:08]} 48. Kf2
{[%clk 0:00:10.3]} 48... Rb3 {[%clk 0:00:07.6]} 49. Rxh7 {[%clk 0:00:10.6]}
49... Rxb4 {[%clk 0:00:09]} 50. Rh6 {[%clk 0:00:09.7]} 50... Bd3 {[%clk
0:00:09.9]} 51. Ke3 {[%clk 0:00:11]} 51... Bf5 {[%clk 0:00:10.6]} 52. h4 {[%clk
0:00:09.8]} 52... Ke5 {[%clk 0:00:11.6]} 53. Bxc6 {[%clk 0:00:09.3]} 53... Rb3+
{[%clk 0:00:10.7]} 54. Kd2 {[%clk 0:00:05.2]} 54... Kf4 {[%clk 0:00:12]} 55. Rh8
{[%clk 0:00:04.2]} 55... Rb6 {[%clk 0:00:08.6]} 56. Ba4 {[%clk 0:00:03.4]} 56...
Rd6+ {[%clk 0:00:06.3]} 57. Kc3 {[%clk 0:00:04.4]} 57... Kg3 {[%clk 0:00:06]}
58. Be8 {[%clk 0:00:04.8]} 58... Re6 {[%clk 0:00:05.2]} 59. Kd4 {[%clk
0:00:04.3]} 59... Kg4 {[%clk 0:00:04.4]} 60. Kd5 {[%clk 0:00:04.5]} 60... Re1
{[%clk 0:00:04.9]} 61. Kd6 {[%clk 0:00:05.2]} 61... Rh1 {[%clk 0:00:06]} 62. Ke7
{[%clk 0:00:06.2]} 62... Rxh4 {[%clk 0:00:07.1]} 63. Rxh4+ {[%clk 0:00:07.1]}
63... Kxh4 {[%clk 0:00:09]} 64. Kf6 {[%clk 0:00:08.7]} 64... Kh5 {[%clk
0:00:07.2]} 65. Bc6 {[%clk 0:00:08.4]} 65... Bd3 {[%clk 0:00:05.6]} 66. Bf3+
{[%clk 0:00:08.7]} 66... Kh4 {[%clk 0:00:06.8]} 67. Bd1 {[%clk 0:00:09.9]} 67...
Be4 {[%clk 0:00:07.1]} 68. Be2 {[%clk 0:00:10.1]} 1/2-1/2

[Event "*** Titled Tuesday 3|2 Blitz"]
[Site "Chess.com"]
[Date "2016.01.05"]
[Round "3"]
[White "chess4life23"]
[Black "Penguininja"]
[Result "1-0"]
[WhiteElo "2149"]
[BlackElo "2139"]
[TimeControl "180+2"]
[EndTime "17:40:27 PST"]
[Termination "chess4life23 won by resignation"]

1. e4 {[%clk 0:03:01.9]} 1... e5 {[%clk 0:02:58.9]} 2. Nf3 {[%clk 0:03:00.2]}
2... Nc6 {[%clk 0:02:59.9]} 3. Bb5 {[%clk 0:03:00.1]} 3... f5 {[%clk 0:03:00.1]}
4. d3 {[%clk 0:02:50.2]} 4... fxe4 {[%clk 0:03:00.6]} 5. dxe4 {[%clk 0:02:50.7]}
5... Nf6 {[%clk 0:03:02.5]} 6. O-O {[%clk 0:02:46.5]} 6... Bc5 {[%clk 0:03:03]}
7. Nc3 {[%clk 0:02:43]} 7... d6 {[%clk 0:02:59.8]} 8. h3 {[%clk 0:02:41.6]} 8...
O-O {[%clk 0:03:00.7]} 9. Bg5 {[%clk 0:02:31.5]} 9... Be6 {[%clk 0:02:39.5]} 10.
Nd5 {[%clk 0:02:28.1]} 10... Kh8 {[%clk 0:02:31.9]} 11. c3 {[%clk 0:02:00]}
11... a6 {[%clk 0:02:29.3]} 12. Ba4 {[%clk 0:01:47.3]} 12... Bxd5 {[%clk
0:02:20.9]} 13. exd5 {[%clk 0:01:46.1]} 13... Ne7 {[%clk 0:02:22]} 14. b4 {[%clk
0:01:36.4]} 14... Bb6 {[%clk 0:02:13.7]} 15. c4 {[%clk 0:01:36.9]} 15... h6
{[%clk 0:02:07.2]} 16. Bh4 {[%clk 0:01:35.7]} 16... Nf5 {[%clk 0:02:01]} 17. Bc2
{[%clk 0:01:30.5]} 17... Nd4 {[%clk 0:01:24.3]} 18. Nxd4 {[%clk 0:01:05.9]}
18... Bxd4 {[%clk 0:01:22.6]} 19. Rc1 {[%clk 0:00:48]} 19... Qd7 {[%clk
0:00:47.6]} 20. Qd3 {[%clk 0:00:43.7]} 20... Qf7 {[%clk 0:00:32]} 21. Kh1 {[%clk
0:00:33.8]} 21... g5 {[%clk 0:00:29]} 22. Bg3 {[%clk 0:00:33.7]} 22... Ba7
{[%clk 0:00:20.5]} 23. Rce1 {[%clk 0:00:31.3]} 23... Qh7 {[%clk 0:00:19.9]} 24.
Qd2 {[%clk 0:00:29.4]} 24... Qf7 {[%clk 0:00:19.9]} 25. Bd3 {[%clk 0:00:29.2]}
25... Rae8 {[%clk 0:00:19.8]} 26. Qc2 {[%clk 0:00:29.3]} 26... Kg7 {[%clk
0:00:19.7]} 27. Re2 {[%clk 0:00:27.2]} 27... Nh5 {[%clk 0:00:20.8]} 28. Bh2
{[%clk 0:00:26.3]} 28... Nf4 {[%clk 0:00:20.8]} 29. Bxf4 {[%clk 0:00:27.2]}
29... Qxf4 {[%clk 0:00:17.8]} 30. Re4 {[%clk 0:00:27.3]} 30... Qf6 {[%clk
0:00:18.6]} 31. f3 {[%clk 0:00:27.4]} 31... Bd4 {[%clk 0:00:19.5]} 32. Rg4
{[%clk 0:00:25.1]} 32... Kf7 {[%clk 0:00:18.2]} 33. Re4 {[%clk 0:00:20.2]} 33...
Kg7 {[%clk 0:00:19.1]} 34. Rg4 {[%clk 0:00:20.3]} 34... Kf7 {[%clk 0:00:20.1]}
35. c5 {[%clk 0:00:21.4]} 35... Rc8 {[%clk 0:00:19.3]} 36. Re4 {[%clk
0:00:21.1]} 36... b6 {[%clk 0:00:18.9]} 37. Bxa6 {[%clk 0:00:11.2]} 37... Ra8
{[%clk 0:00:19.5]} 38. Bc4 {[%clk 0:00:13]} 38... bxc5 {[%clk 0:00:20]} 39. bxc5
{[%clk 0:00:14.9]} 39... Bxc5 {[%clk 0:00:21.5]} 40. Rfe1 {[%clk 0:00:15.3]}
40... Kg7 {[%clk 0:00:22.8]} 41. Rg4 {[%clk 0:00:16.1]} 41... Ra3 {[%clk
0:00:22.2]} 42. Rge4 {[%clk 0:00:16.1]} 42... Rfa8 {[%clk 0:00:21.7]} 43. Bb3
{[%clk 0:00:13.1]} 43... R3a7 {[%clk 0:00:21.7]} 44. Rc4 {[%clk 0:00:14.2]}
44... Rb8 {[%clk 0:00:23]} 45. Rxc5 {[%clk 0:00:15.3]} 45... dxc5 {[%clk
0:00:24]} 46. Qxc5 {[%clk 0:00:17.2]} 46... Qd6 {[%clk 0:00:25.3]} 47. Qe3
{[%clk 0:00:18]} 47... Rab7 {[%clk 0:00:26.1]} 48. Qe4 {[%clk 0:00:19.2]} 48...
Rb4 {[%clk 0:00:26.1]} 49. Qf5 {[%clk 0:00:19.7]} 49... Rf4 {[%clk 0:00:26.3]}
50. Qd3 {[%clk 0:00:19.3]} 50... Rd4 {[%clk 0:00:21]} 51. Qf5 {[%clk 0:00:20]}
51... Rf4 {[%clk 0:00:22.1]} 52. Qd3 {[%clk 0:00:20.8]} 52... Re8 {[%clk
0:00:23.2]} 53. Rc1 {[%clk 0:00:21.3]} 53... Rf7 {[%clk 0:00:23.7]} 54. Bc2
{[%clk 0:00:21.6]} 54... e4 {[%clk 0:00:23.6]} 55. fxe4 {[%clk 0:00:21.8]} 55...
Qe5 {[%clk 0:00:25.2]} 56. Bb1 {[%clk 0:00:21.8]} 56... Ref8 {[%clk 0:00:25.6]}
57. Rg1 {[%clk 0:00:22.9]} 57... Re7 {[%clk 0:00:24.6]} 58. a4 {[%clk
0:00:23.5]} 58... Ra8 {[%clk 0:00:25.1]} 59. Bc2 {[%clk 0:00:23.8]} 59... Rd8
{[%clk 0:00:24.2]} 60. Qc4 {[%clk 0:00:24.1]} 60... Red7 {[%clk 0:00:21.5]} 61.
a5 {[%clk 0:00:24.2]} 61... Rf7 {[%clk 0:00:18.8]} 62. a6 {[%clk 0:00:22.8]}
62... Rff8 {[%clk 0:00:20.2]} 63. Ba4 {[%clk 0:00:21.4]} 63... Ra8 {[%clk
0:00:20.6]} 64. Bc6 {[%clk 0:00:22.4]} 64... Ra7 {[%clk 0:00:20.2]} 65. Bb7
{[%clk 0:00:23.9]} 65... Rb8 {[%clk 0:00:18.3]} 66. Rf1 {[%clk 0:00:18.7]} 66...
Raxb7 {[%clk 0:00:16.9]} 67. axb7 {[%clk 0:00:20.1]} 67... Rxb7 {[%clk
0:00:18.8]} 68. Qc6 {[%clk 0:00:21.7]} 68... Rb8 {[%clk 0:00:18.4]} 69. Qd7+
{[%clk 0:00:22.5]} 69... Kh8 {[%clk 0:00:16.8]} 70. Qf5 {[%clk 0:00:12.8]} 70...
Qd6 {[%clk 0:00:14.9]} 71. e5 {[%clk 0:00:11.7]} 71... Qe7 {[%clk 0:00:14.2]}
72. Qf6+ {[%clk 0:00:11.7]} 72... Qxf6 {[%clk 0:00:14.6]} 73. Rxf6 {[%clk
0:00:13.6]} 73... Kg7 {[%clk 0:00:15.5]} 74. Rc6 {[%clk 0:00:14.7]} 74... Rb7
{[%clk 0:00:17]} 75. d6 {[%clk 0:00:15.7]} 75... cxd6 {[%clk 0:00:18.9]} 76.
exd6 {[%clk 0:00:17.2]} 76... Rb1+ {[%clk 0:00:17.7]} 77. Kh2 {[%clk 0:00:17.5]}
77... Rd1 {[%clk 0:00:19.6]} 78. Kg3 {[%clk 0:00:17.7]} 78... Rd4 {[%clk
0:00:18.9]} 79. Rc7+ {[%clk 0:00:16.7]} 79... Kf6 {[%clk 0:00:19.1]} 80. d7
{[%clk 0:00:18.6]} 80... Ke6 {[%clk 0:00:20.5]} 81. Ra7 {[%clk 0:00:17.8]} 81...
Rxd7 {[%clk 0:00:21.2]} 82. Rxd7 {[%clk 0:00:17.4]} 82... Kxd7 {[%clk
0:00:22.8]} 83. Kg4 {[%clk 0:00:19.3]} 83... Ke6 {[%clk 0:00:24.4]} 84. Kh5
{[%clk 0:00:20.9]} 84... Kf5 {[%clk 0:00:26]} 85. Kxh6 {[%clk 0:00:22.5]} 85...
Kf4 {[%clk 0:00:26.9]} 86. Kh5 {[%clk 0:00:23.8]} 86... Kf5 {[%clk 0:00:27.6]}
87. g3 {[%clk 0:00:23]} 87... Kf6 {[%clk 0:00:28.6]} 88. g4 {[%clk 0:00:22.4]}
1-0

[Event "*** Titled Tuesday 3|2 Blitz"]
[Site "Chess.com"]
[Date "2016.01.05"]
[Round "3"]
[White "pedromartinez91"]
[Black "tac49"]
[Result "0-1"]
[WhiteElo "2079"]
[BlackElo "2430"]
[TimeControl "180+2"]
[EndTime "17:41:07 PST"]
[Termination "tac49 won by resignation"]

1. e4 {[%clk 0:03:01.9]} 1... e5 {[%clk 0:02:58]} 2. Nf3 {[%clk 0:03:01.9]} 2...
Nc6 {[%clk 0:02:58]} 3. Bb5 {[%clk 0:03:01.4]} 3... a6 {[%clk 0:02:57.4]} 4. Ba4
{[%clk 0:03:01.9]} 4... Nf6 {[%clk 0:02:57.1]} 5. O-O {[%clk 0:03:01.8]} 5...
Be7 {[%clk 0:02:57.2]} 6. d3 {[%clk 0:03:00.7]} 6... d6 {[%clk 0:02:51.4]} 7. a3
{[%clk 0:02:51.9]} 7... Bg4 {[%clk 0:02:46.8]} 8. h3 {[%clk 0:02:52.1]} 8...
Bxf3 {[%clk 0:02:42.9]} 9. Bxc6+ {[%clk 0:02:44.6]} 9... bxc6 {[%clk 0:02:44.8]}
10. Qxf3 {[%clk 0:02:45.4]} 10... O-O {[%clk 0:02:46.7]} 11. Qg3 {[%clk
0:02:43.1]} 11... Nh5 {[%clk 0:02:41.8]} 12. Qg4 {[%clk 0:02:43.6]} 12... g6
{[%clk 0:02:42.1]} 13. Bh6 {[%clk 0:02:43.2]} 13... Re8 {[%clk 0:02:27.4]} 14.
Nd2 {[%clk 0:02:38.8]} 14... Bf8 {[%clk 0:02:15.6]} 15. Bg5 {[%clk 0:02:24.5]}
15... Qc8 {[%clk 0:02:06]} 16. Qxc8 {[%clk 0:02:24.3]} 16... Raxc8 {[%clk
0:02:06]} 17. Nc4 {[%clk 0:02:24.2]} 17... Ng7 {[%clk 0:01:59.1]} 18. Na5 {[%clk
0:02:21.2]} 18... Ne6 {[%clk 0:01:59.6]} 19. Be3 {[%clk 0:02:21]} 19... c5
{[%clk 0:01:57.8]} 20. b4 {[%clk 0:02:15]} 20... f5 {[%clk 0:01:33.6]} 21. f3
{[%clk 0:02:06.1]} 21... c6 {[%clk 0:01:21.2]} 22. bxc5 {[%clk 0:02:04]} 22...
d5 {[%clk 0:01:21.9]} 23. exd5 {[%clk 0:01:55.6]} 23... cxd5 {[%clk 0:01:22]}
24. c6 {[%clk 0:01:56.4]} 24... Nd8 {[%clk 0:01:12.5]} 25. c4 {[%clk 0:01:12.1]}
25... Nxc6 {[%clk 0:01:02.6]} 26. Nb3 {[%clk 0:00:59.8]} 26... dxc4 {[%clk
0:00:41.1]} 27. dxc4 {[%clk 0:01:00.2]} 27... Red8 {[%clk 0:00:34.8]} 28. Rfd1
{[%clk 0:00:59.4]} 28... Nd4 {[%clk 0:00:20.4]} 29. Bxd4 {[%clk 0:00:23.5]}
29... exd4 {[%clk 0:00:22.3]} 30. Na5 {[%clk 0:00:17.1]} 30... d3 {[%clk
0:00:21.1]} 31. Kf1 {[%clk 0:00:17.4]} 31... Bh6 {[%clk 0:00:18.1]} 32. Rab1
{[%clk 0:00:17.2]} 32... Be3 {[%clk 0:00:16.2]} 33. Rb3 {[%clk 0:00:14]} 33...
Bc5 {[%clk 0:00:08.4]} 34. Rbxd3 {[%clk 0:00:15]} 34... Rxd3 {[%clk 0:00:10.3]}
35. Rxd3 {[%clk 0:00:15.8]} 35... Rb8 {[%clk 0:00:12.2]} 36. g4 {[%clk
0:00:13.4]} 36... Rb2 {[%clk 0:00:11.9]} 37. a4 {[%clk 0:00:10.3]} 37... f4
{[%clk 0:00:10.2]} 38. h4 {[%clk 0:00:10.5]} 38... Be3 {[%clk 0:00:10.1]} 39. c5
{[%clk 0:00:08.2]} 39... Bxc5 {[%clk 0:00:08.4]} 40. Nc4 {[%clk 0:00:08.7]}
40... Rb4 {[%clk 0:00:08.2]} 41. Ne5 {[%clk 0:00:09.2]} 41... Rxa4 {[%clk
0:00:08.9]} 42. h5 {[%clk 0:00:10.3]} 42... gxh5 {[%clk 0:00:08.9]} 43. gxh5
{[%clk 0:00:10.9]} 43... Be3 {[%clk 0:00:09.9]} 44. h6 {[%clk 0:00:07.7]} 44...
Rd4 {[%clk 0:00:09.1]} 45. Rb3 {[%clk 0:00:04.3]} 45... Rd8 {[%clk 0:00:06.7]}
46. Rb7 {[%clk 0:00:04.5]} 46... Bd4 {[%clk 0:00:06.8]} 47. Rg7+ {[%clk
0:00:05.1]} 47... Kf8 {[%clk 0:00:07.7]} 48. Rf7+ {[%clk 0:00:06.1]} 48... Ke8
{[%clk 0:00:07.7]} 49. Rf5 {[%clk 0:00:06.8]} 49... Rd5 {[%clk 0:00:07.9]} 50.
Rf7 {[%clk 0:00:03.3]} 50... Rxe5 {[%clk 0:00:07.9]} 51. Rxh7 {[%clk 0:00:04.8]}
51... Re6 {[%clk 0:00:08.9]} 52. Kg2 {[%clk 0:00:03.5]} 52... a5 {[%clk
0:00:08.7]} 53. Kh3 {[%clk 0:00:04.1]} 53... Rg6 {[%clk 0:00:09.4]} 54. Kh4
{[%clk 0:00:04.5]} 54... a4 {[%clk 0:00:09.8]} 55. Kh5 {[%clk 0:00:05.6]} 55...
Rg3 {[%clk 0:00:09.9]} 56. Rb7 {[%clk 0:00:05.5]} 56... Rxf3 {[%clk 0:00:09.6]}
57. Rb4 {[%clk 0:00:06.4]} 57... Be5 {[%clk 0:00:07.6]} 58. Re4 {[%clk 0:00:07]}
58... Re3 {[%clk 0:00:07.9]} 59. Rxa4 {[%clk 0:00:07.1]} 59... Kf7 {[%clk
0:00:08.8]} 60. Ra7+ {[%clk 0:00:06.9]} 60... Ke6 {[%clk 0:00:08.7]} 61. h7
{[%clk 0:00:07.9]} 61... Rh3+ {[%clk 0:00:08.7]} 62. Kg6 {[%clk 0:00:09]} 62...
Rg3+ {[%clk 0:00:09.5]} 63. Kh6 {[%clk 0:00:09.2]} 63... Kf5 {[%clk 0:00:09]}
64. Rf7+ {[%clk 0:00:07.8]} 64... Ke4 {[%clk 0:00:08.2]} 65. Re7 {[%clk
0:00:08.9]} 65... Rh3+ {[%clk 0:00:08.3]} 66. Kg5 {[%clk 0:00:06.3]} 66... f3
{[%clk 0:00:10.2]} 67. Kg4 {[%clk 0:00:07.4]} 67... Rh1 {[%clk 0:00:09.2]} 68.
Rf7 {[%clk 0:00:07.6]} 68... Rg1+ {[%clk 0:00:07.7]} 69. Kh3 {[%clk 0:00:06.6]}
69... Rg6 {[%clk 0:00:06.6]} 70. Kh4 {[%clk 0:00:06.5]} 70... Rh6+ {[%clk
0:00:06.1]} 71. Kg5 {[%clk 0:00:07.1]} 71... Rh1 {[%clk 0:00:06.2]} 72. Kg4
{[%clk 0:00:07.8]} 72... Rg1+ {[%clk 0:00:06.9]} 73. Kh3 {[%clk 0:00:09.1]}
73... Rg3+ {[%clk 0:00:07.6]} 74. Kh4 {[%clk 0:00:09.9]} 74... Rg1 {[%clk
0:00:07.5]} 75. Re7 {[%clk 0:00:11.2]} 75... Rh1+ {[%clk 0:00:05.1]} 76. Kg4
{[%clk 0:00:12]} 76... f2 {[%clk 0:00:07]} 77. Rf7 {[%clk 0:00:13.2]} 77... f1=Q
{[%clk 0:00:07.1]} 78. Rxf1 {[%clk 0:00:13.9]} 78... Rxf1 {[%clk 0:00:09]} 0-1

[Event "*** Titled Tuesday 3|2 Blitz"]
[Site "Chess.com"]
[Date "2016.01.05"]
[Round "4"]
[White "ChessChronicles123"]
[Black "jcgs1030"]
[Result "0-1"]
[WhiteElo "1696"]
[BlackElo "2194"]
[TimeControl "180+2"]
[EndTime "17:46:37 PST"]
[Termination "jcgs1030 won by resignation"]

1. Nf3 {[%clk 0:03:01.9]} 1... c5 {[%clk 0:03:01.9]} 2. g3 {[%clk 0:03:02.7]}
2... g6 {[%clk 0:02:57]} 3. Bg2 {[%clk 0:03:04.2]} 3... Bg7 {[%clk 0:02:58.3]}
4. O-O {[%clk 0:03:04.1]} 4... Nf6 {[%clk 0:03:00.2]} 5. c4 {[%clk 0:03:05.3]}
5... O-O {[%clk 0:03:01.8]} 6. Nc3 {[%clk 0:03:06.4]} 6... Nc6 {[%clk
0:03:03.4]} 7. d3 {[%clk 0:03:07.4]} 7... d5 {[%clk 0:03:04.4]} 8. a3 {[%clk
0:03:05.9]} 8... dxc4 {[%clk 0:03:02.5]} 9. dxc4 {[%clk 0:03:06.3]} 9... Qxd1
{[%clk 0:03:03.7]} 10. Rxd1 {[%clk 0:03:05.6]} 10... Be6 {[%clk 0:03:05.6]} 11.
Nd5 {[%clk 0:03:00.1]} 11... Rfd8 {[%clk 0:03:01]} 12. Ng5 {[%clk 0:02:52.4]}
12... Bg4 {[%clk 0:02:58.7]} 13. f3 {[%clk 0:02:43.7]} 13... Bc8 {[%clk
0:02:49.6]} 14. Bf4 {[%clk 0:02:33.2]} 14... Nxd5 {[%clk 0:02:44.9]} 15. cxd5
{[%clk 0:02:31.4]} 15... Nd4 {[%clk 0:02:45.4]} 16. e3 {[%clk 0:02:20.1]} 16...
Ne2+ {[%clk 0:02:44.9]} 17. Kf2 {[%clk 0:02:19.6]} 17... Nxf4 {[%clk 0:02:46.8]}
18. gxf4 {[%clk 0:02:17.7]} 18... Bxb2 {[%clk 0:02:48.7]} 19. Rab1 {[%clk
0:02:18.9]} 19... Bxa3 {[%clk 0:02:49.7]} 20. e4 {[%clk 0:02:17.4]} 20... Bb4
{[%clk 0:02:49.9]} 21. e5 {[%clk 0:02:16.6]} 21... Bf5 {[%clk 0:02:47.4]} 22.
Ne4 {[%clk 0:02:15.7]} 22... b6 {[%clk 0:02:45]} 23. d6 {[%clk 0:02:16]} 23...
exd6 {[%clk 0:02:45.5]} 24. exd6 {[%clk 0:02:13.1]} 24... Kg7 {[%clk 0:02:46]}
25. Bf1 {[%clk 0:02:11.9]} 25... a5 {[%clk 0:02:45.5]} 26. Bb5 {[%clk
0:02:05.7]} 26... a4 {[%clk 0:02:46.3]} 27. Ra1 {[%clk 0:02:02.5]} 27... a3
{[%clk 0:02:47]} 28. d7 {[%clk 0:01:58.9]} 28... Ra7 {[%clk 0:02:45.2]} 29. Rd5
{[%clk 0:01:20.7]} 29... Be6 {[%clk 0:02:31]} 30. Rd3 {[%clk 0:01:14.7]} 30...
Bxd7 {[%clk 0:02:31.2]} 31. Rad1 {[%clk 0:01:14.1]} 31... a2 {[%clk 0:02:32.3]}
32. Bxd7 {[%clk 0:01:10.4]} 32... Raxd7 {[%clk 0:02:32.4]} 33. Rxd7 {[%clk
0:01:08.3]} 33... Rxd7 {[%clk 0:02:34.3]} 34. Ra1 {[%clk 0:01:05.9]} 34... Ra7
{[%clk 0:02:33.5]} 35. Nd6 {[%clk 0:01:05]} 35... Bc3 {[%clk 0:02:32.9]} 0-1